fUSD/lending_fUSD_20241001
["ID","MTS","AMOUNT","RATE_DAILY","PERIOD"]
[339665919,1727820734602,-500.0,0.00038904,120]
[339665920,1727820734611,-500.0,0.00038904,120]
[339665921,1727820734621,-500.0,0.00038904,120]
[339665922,1727820734631,-500.0,0.00038904,120]
[339665923,1727820734644,-920.24,0.00038904,120]
[339665924,1727820734654,-1196.56,0.00038904,120]
[339665925,1727820734664,-500.0,0.00038904,120]
[339665926,1727820734674,-1565.97,0.00038904,7]
[339665927,1727820734685,-682.18,0.00038904,120]
[339665928,1727820734695,-2161.41,0.00038904,120]
[339665929,1727820734705,-500.0,0.00038904,120]
[339665930,1727820734715,-500.0,0.00038904,120]
[339665931,1727820734726,-984.06,0.00038904,120]
[339665932,1727820734736,-893.82,0.00038904,120]
[339665933,1727820734746,-614.76,0.00038904,120]
[339665934,1727820734756,-500.0,0.00038904,120]
[339665935,1727820734777,-4017.33,0.00038904,120]
[339665936,1727820734786,-556.32,0.00038904,120]
[339665937,1727820734796,-1530.83,0.00038904,120]
[339665938,1727820734806,-500.0,0.00038904,120]
[339665939,1727820734815,-500.0,0.00038904,120]
[339665940,1727820734825,-500.0,0.00038904,120]
[339665941,1727820734834,-2813.32,0.00038904,120]
[339665942,1727820734844,-500.0,0.00038904,120]
[339665943,1727820734853,-989.03,0.00038904,120]
[339665944,1727820734863,-1381.53,0.00038904,120]
[339665945,1727820734873,-500.0,0.00038904,120]
[339665946,1727820734882,-500.0,0.00038904,120]
[339665947,1727820734891,-625.33,0.00038904,120]
[339665948,1727820734901,-500.0,0.00038904,120]
[339665949,1727820734910,-500.0,0.00038904,120]
[339665950,1727820734920,-3207.82,0.00038904,120]
[339665951,1727820734929,-529.0,0.00038904,120]
[339665952,1727820734939,-500.0,0.00038904,120]
[339665953,1727820734948,-1336.39,0.00038904,120]
[339665954,1727820734958,-500.0,0.00038904,120]
[339665955,1727820734968,-1417.06,0.00038904,120]
[339665956,1727820734978,-500.0,0.00038904,120]
[339665957,1727820734988,-691.8,0.00038904,120]
[339665958,1727820734998,-829.5,0.00038904,120]
[339665959,1727820735008,-1750.69,0.00038904,120]
[339665960,1727820735022,-1683.2,0.00038904,120]
[339665961,1727820735032,-518.37,0.00038904,120]
[339665962,1727820735042,-500.0,0.00038904,120]
[339665963,1727820735052,-500.0,0.00038904,120]
[339665964,1727820735061,-215.9193817,0.00038904,120]
[339665965,1727820735071,-501.36723639,0.00038904,120]
[339665966,1727820735081,-565.37,0.00038904,120]
[339665967,1727820735090,-1040.53,0.00038904,120]
[339665968,1727820735099,-500.0,0.00038904,120]
[339665969,1727820735110,-500.0,0.00038904,120]
[339665970,1727820735121,-500.0,0.00038904,120]
[339665971,1727820735131,-2903.08,0.00038904,120]
[339665972,1727820735144,-1019.42,0.00038904,120]
[339665973,1727820735154,-500.0,0.00038904,120]
[339665974,1727820735167,-500.0,0.00038904,120]
[339665975,1727820735176,-152.12787872,0.00038904,120]
[339665976,1727820735186,-685.88,0.00038904,120]
[339665977,1727820735195,-3679.16,0.00038904,120]
[339665978,1727820735205,-1591.74,0.00038904,120]
[339665979,1727820735215,-500.0,0.00038904,120]
[339665980,1727820735224,-509.48,0.00038904,120]
[339665981,1727820735234,-500.0,0.00038904,120]
[339665982,1727820735243,-931.69,0.00038904,120]
[339665983,1727820735252,-500.0,0.00038904,120]
[339665984,1727820735262,-500.0,0.00038904,120]
[339665985,1727820735271,-846.41,0.00038904,120]
[339665986,1727820735280,-500.0,0.00038904,120]
[339665987,1727820735289,-500.0,0.00038904,120]
[339665988,1727820735299,-500.0,0.00038904,120]
[339665989,1727820735308,-579.38,0.00038904,120]
[339665990,1727820735318,-408.19196791,0.00038904,120]
[339665991,1727820735329,-500.0,0.00038904,120]
[339665992,1727820735339,-500.0,0.00038904,120]
[339665993,1727820735348,-500.0,0.00038904,120]
[339665994,1727820735358,-658.41,0.00038904,120]
[339665995,1727820735368,-938.76,0.00038904,120]
[339665996,1727820735378,-500.0,0.00038904,120]
[339665997,1727820735387,-500.0,0.00038904,120]
[339665998,1727820735397,-500.0,0.00038904,120]
[339665999,1727820735407,-500.0,0.00038904,120]
[339666000,1727820735416,-633.77,0.00038904,120]
[339666001,1727820735426,-1178.43,0.00038904,120]
[339666002,1727820735435,-631.01,0.00038904,120]
[339666003,1727820735445,-500.0,0.00038904,120]
[339666004,1727820735454,-500.0,0.00038904,120]
[339666005,1727820735463,-507.23978436,0.00038904,120]
[339666006,1727820735472,-4318.07,0.00038904,120]
[339666007,1727820735482,-1300.84,0.00038904,120]
[339666008,1727820735491,-1477.24,0.00038904,120]
[339666009,1727820735501,-649.66,0.00038904,120]
[339666010,1727820735511,-3571.84,0.00038904,24]
[339666011,1727820735520,-790.35,0.00038904,120]
[339666012,1727820735530,-500.0,0.00038904,120]
[339666013,1727820735539,-500.0,0.00038904,120]
[339666014,1727820735548,-500.0,0.00038904,120]
[339666015,1727820735558,-500.0,0.00038904,120]
[339666016,1727820735567,-500.0,0.00038904,120]
[339666017,1727820735577,-2269.39,0.00038904,120]
[339666018,1727820735587,-509.05,0.00038904,120]
[339666019,1727820735597,-950.35,0.00038904,14]
[339666020,1727820735606,-906.26,0.00038904,120]
[339666021,1727820735616,-695.43,0.00038904,120]
[339666022,1727820735625,-517.55093816,0.00038904,120]
[339666023,1727820735635,-500.0,0.00038904,120]
[339666024,1727820735647,-500.0,0.00038904,120]
[339666025,1727820735657,-5863.43,0.00038904,120]
[339666026,1727820735667,-500.0,0.00038904,120]
[339666027,1727820735676,-1343.7,0.00038904,120]
[339666028,1727820735686,-500.0,0.00038904,120]
[339666029,1727820735696,-500.0,0.00038904,120]
[339666030,1727820735705,-500.0,0.00038904,120]
[339666031,1727820735716,-500.0,0.00038904,120]
[339666032,1727820735726,-500.0,0.00038904,120]
[339666033,1727820735735,-500.0,0.00038904,2]
[339666034,1727820735744,-1433.18,0.00038904,120]
[339666035,1727820735753,-500.0,0.00038904,120]
[339666036,1727820735763,-500.0,0.00038904,120]
[339666037,1727820735772,-2031.89,0.00038904,120]
[339666038,1727820735782,-2892.65,0.00038904,120]
[339666039,1727820735791,-558.87,0.00038904,120]
[339666040,1727820735801,-1519.54,0.00038904,120]
[339666041,1727820735810,-500.0,0.00038904,120]
[339666042,1727820735819,-500.0,0.00038904,120]
[339666043,1727820735828,-5052.98,0.00038904,120]
[339666044,1727820735837,-2464.24,0.00038904,120]
[339666045,1727820735846,-500.0,0.00038904,120]
[339666046,1727820735855,-642.05,0.00038904,120]
[339666047,1727820735865,-598.73,0.00038904,120]
[339666048,1727820735874,-581.71,0.00038904,120]
[339666049,1727820735883,-1855.45,0.00038904,120]
[339666050,1727820735892,-1193.22,0.00038904,120]
[339666051,1727820735901,-371.80336349,0.00038904,120]
[339666052,1727820735911,-2055.41,0.00038904,120]
[339666053,1727820735920,-500.0,0.00038904,120]
[339666054,1727820735929,-500.0,0.00038904,120]
[339666055,1727820735939,-750.15,0.00038904,120]
[339666056,1727820735949,-2691.72,0.00038904,120]
[339666057,1727820735958,-500.0,0.00038904,120]
[339666058,1727820735967,-500.0,0.00038904,120]
[339666059,1727820735976,-500.0,0.00038904,120]
[339666060,1727820735986,-548.81,0.00038904,120]
[339666061,1727820735995,-6652.18,0.00038904,120]
[339666062,1727820736004,-513.2,0.00038904,120]
[339666063,1727820736014,-500.0,0.00038904,120]
[339666064,1727820736023,-500.0,0.00038904,120]
[339666065,1727820736032,-1189.34,0.00038904,120]
[339666066,1727820736041,-321.68730451,0.00038904,120]
[339666067,1727820736051,-4738.33,0.00038904,120]
[339666068,1727820736060,-806.35,0.00038904,120]
[339666069,1727820736069,-500.0,0.00038904,120]
[339666070,1727820736078,-500.0,0.00038904,120]
[339666071,1727820736087,-500.0,0.00038904,120]
[339666072,1727820736096,-917.73,0.00038904,120]
[339666073,1727820736105,-500.0,0.00038904,120]
[339666074,1727820736114,-500.0,0.00038904,120]
[339666075,1727820736123,-500.0,0.00038904,120]
[339666076,1727820736135,-533.87,0.00038904,120]
[339666077,1727820736145,-500.0,0.00038904,120]
[339666078,1727820736155,-500.0,0.00038904,120]
[339666079,1727820736165,-945.7,0.00038904,120]
[339666080,1727820736174,-5194.61,0.00038904,120]
[339666081,1727820736184,-500.0,0.00038904,120]
[339666082,1727820736193,-1116.02,0.00038904,120]
[339666083,1727820736202,-500.0,0.00038904,120]
[339666084,1727820736211,-832.73,0.00038904,120]
[339666085,1727820736220,-500.0,0.00038904,120]
[339666086,1727820736230,-500.0,0.00038904,120]
[339666087,1727820736239,-2703.66,0.00038904,120]
[339666088,1727820736249,-500.0,0.00038904,120]
[339666089,1727820736259,-902.25,0.00038904,120]
[339666090,1727820736270,-500.0,0.00038904,120]
[339666091,1727820736279,-1320.9,0.00038904,120]
[339666092,1727820736288,-500.0,0.00038904,120]
[339666093,1727820736298,-659.17,0.00038904,120]
[339666094,1727820736309,-2578.82,0.00038904,120]
[339666095,1727820736320,-500.0,0.00038904,120]
[339666096,1727820736330,-1704.81,0.00038904,120]
[339666097,1727820736339,-500.0,0.00038904,120]
[339666098,1727820736348,-1586.77,0.00038904,120]
[339666099,1727820736358,-1388.49,0.00038904,120]
[339666100,1727820736367,-834.76,0.00038904,120]
[339666101,1727820736376,-500.0,0.00038904,120]
[339666102,1727820736386,-500.0,0.00038904,120]
[339666103,1727820736395,-944.31,0.00038904,120]
[339666104,1727820736404,-500.0,0.00038904,120]
[339666105,1727820736414,-500.0,0.00038904,120]
[339666106,1727820736424,-500.0,0.00038904,120]
[339666107,1727820736433,-500.0,0.00038904,120]
[339666108,1727820736442,-500.0,0.00038904,120]
[339666109,1727820736451,-500.0,0.00038904,120]
[339666110,1727820736460,-793.38,0.00038904,120]
[339666111,1727820736470,-500.0,0.00038904,120]
[339666112,1727820736479,-500.0,0.00038904,120]
[339666113,1727820736489,-500.0,0.00038904,120]
[339666114,1727820736499,-1639.8,0.00038904,120]
[339666115,1727820736509,-2627.22,0.00038904,120]
[339666116,1727820736520,-3122.29,0.00038904,120]
[339666117,1727820736529,-500.0,0.00038904,120]
[339666118,1727820736539,-725.25,0.00038904,120]
[339666119,1727820736548,-1519.29,0.00038904,120]
[339666120,1727820736557,-500.0,0.00038904,120]
[339666121,1727820736567,-170.62284261,0.00038904,120]
[339666122,1727820736576,-2668.85,0.00038904,120]
[339666123,1727820736584,-5376.69,0.00038904,120]
[339666124,1727820736594,-957.13,0.00038904,120]
[339666125,1727820736604,-500.0,0.00038904,120]
[339666126,1727820736613,-500.0,0.00038904,120]
[339666127,1727820736623,-742.86,0.00038904,120]
[339666128,1727820736632,-3167.05,0.00038904,120]
[339666129,1727820736644,-500.0,0.00038904,120]
[339666130,1727820736653,-500.0,0.00038904,120]
[339666131,1727820736663,-842.39,0.00038904,120]
[339666132,1727820736977,-1188.41,0.00038904,120]
[339666133,1727820736987,-1000.0,0.00038904,120]
[339666134,1727820736996,-500.0,0.00038904,120]
[339666135,1727820737005,-977.8,0.00038904,120]
[339666136,1727820737017,-1574.81,0.00038904,120]
[339666137,1727820737026,-500.0,0.00038904,120]
[339666138,1727820737035,-592.48,0.00038904,120]
[339666139,1727820737045,-835.75,0.00038904,120]
[339666140,1727820737055,-500.0,0.00038904,120]
[339666141,1727820737064,-500.0,0.00038904,120]
[339666142,1727820737073,-500.0,0.00038904,120]
[339666143,1727820737082,-1628.64,0.00038904,120]
[339666144,1727820737092,-767.06,0.00038904,120]
[339666145,1727820737101,-500.0,0.00038904,120]
[339666146,1727820737110,-500.0,0.00038904,120]
[339666147,1727820737119,-1332.74,0.00038904,120]
[339666148,1727820737129,-500.0,0.00038904,120]
[339666149,1727820737138,-891.92,0.00038904,120]
[339666150,1727820737147,-879.96,0.00038904,120]
[339666151,1727820737156,-870.15,0.00038904,120]
[339666152,1727820737166,-500.0,0.00038904,120]
[339666153,1727820737175,-3053.04,0.00038904,120]
[339666154,1727820737185,-500.0,0.00038904,120]
[339666155,1727820737195,-266.36682279,0.00038904,120]
[339666156,1727820737204,-500.0,0.00038904,120]
[339666157,1727820737214,-500.0,0.00038904,120]
[339666158,1727820737223,-500.0,0.00038904,120]
[339666159,1727820737233,-1765.25,0.00038904,120]
[339666160,1727820737244,-500.0,0.00038904,120]
[339666161,1727820737254,-2848.92,0.00038904,120]
[339666162,1727820737264,-500.0,0.00038904,120]
[339666163,1727820737273,-2618.25,0.00038904,120]
[339666164,1727820737282,-922.35,0.00038904,2]
[339666165,1727820737291,-733.76,0.00038904,120]
[339666166,1727820737301,-500.0,0.00038904,120]
[339666167,1727820737312,-1452.8,0.00038904,120]
[339666168,1727820737322,-745.69,0.00038904,120]
[339666169,1727820737334,-515.59,0.00038904,120]
[339666170,1727820737344,-504.12,0.00038904,120]
[339666171,1727820737354,-181.93860101,0.00038904,30]
[339666172,1727820737364,-748.91,0.00038904,30]
[339666173,1727820737373,-5228.9,0.00038904,120]
[339666174,1727820737383,-500.0,0.00038904,120]
[339666175,1727820737392,-500.0,0.00038904,120]
[339666176,1727820737401,-1099.12,0.00038904,120]
[339666177,1727820737411,-500.0,0.00038904,120]
[339666178,1727820737420,-925.91,0.00038904,120]
[339666179,1727820737430,-3838.42,0.00038904,120]
[339666180,1727820737439,-500.0,0.00038904,120]
[339666181,1727820737450,-983.15,0.00038904,120]
[339666182,1727820737459,-562.84,0.00038904,120]
[339666183,1727820737468,-585.77,0.00038904,120]
[339666184,1727820737477,-930.9,0.00038904,120]
[339666185,1727820737487,-457.24673802,0.00038904,120]
[339666186,1727820737496,-500.0,0.00038904,120]
[339666187,1727820737505,-500.0,0.00038904,120]
[339666188,1727820737516,-1347.98,0.00038904,120]
[339666189,1727820737526,-2842.0,0.00038904,120]
[339666190,1727820737535,-500.0,0.00038904,120]
[339666191,1727820737545,-2740.56,0.00038904,120]
[339666192,1727820737554,-1496.77,0.00038904,15]
[339666193,1727820737563,-500.0,0.00038904,120]
[339666194,1727820737572,-500.0,0.00038904,120]
[339666195,1727820737582,-678.65,0.00038904,120]
[339666196,1727820737591,-1862.99,0.00038904,120]
[339666197,1727820737601,-500.0,0.00038904,120]
[339666198,1727820737610,-1682.2,0.00038904,120]
[339666199,1727820737620,-1067.94,0.00038904,120]
[339666200,1727820737629,-500.0,0.00038904,120]
[339666201,1727820737640,-871.43,0.00038904,120]
[339666202,1727820737651,-500.0,0.00038904,120]
[339666203,1727820737660,-500.0,0.00038904,120]
[339666204,1727820737669,-625.16,0.00038904,120]
[339666205,1727820737679,-1476.53,0.00038904,120]
[339666206,1727820737689,-500.0,0.00038904,120]
[339666207,1727820737699,-500.0,0.00038904,120]
[339666208,1727820737708,-1931.66,0.00038904,120]
[339666209,1727820737719,-1349.45,0.00038904,120]
[339666210,1727820737729,-1300.41,0.00038904,120]
[339666211,1727820737738,-500.0,0.00038904,120]
[339666212,1727820737747,-3574.07,0.00038904,120]
[339666213,1727820737757,-500.0,0.00038904,120]
[339666214,1727820737767,-920.76,0.00038904,120]
[339666215,1727820737776,-3172.4,0.00038904,120]
[339666216,1727820737786,-500.0,0.00038904,120]
[339666217,1727820737796,-1193.1,0.00038904,120]
[339666218,1727820737807,-500.0,0.00038904,120]
[339666219,1727820737817,-500.0,0.00038904,120]
[339666220,1727820737826,-1359.38,0.00038904,120]
[339666221,1727820737835,-500.0,0.00038904,120]
[339666222,1727820737844,-500.0,0.00038904,120]
[339666223,1727820737854,-1219.73,0.00038904,120]
[339666224,1727820737863,-983.64,0.00038904,120]
[339666225,1727820737873,-856.28,0.00038904,120]
[339666226,1727820737882,-1226.11,0.00038904,120]
[339666227,1727820737891,-3907.21,0.00038904,120]
[339666228,1727820737901,-2101.16,0.00038904,120]
[339666229,1727820737910,-204.38573103,0.00038904,120]
[339666230,1727820737919,-663.63,0.00038904,120]
[339666231,1727820737928,-2234.39,0.00038904,120]
[339666232,1727820737938,-5292.68,0.00038904,120]
[339666233,1727820737947,-500.0,0.00038904,120]
[339666234,1727820737957,-500.0,0.00038904,120]
[339666235,1727820737967,-500.0,0.00038904,120]
[339666236,1727820737976,-1469.82,0.00038904,120]
[339666237,1727820737986,-500.0,0.00038904,120]
[339666238,1727820737995,-500.0,0.00038904,120]
[339666239,1727820738005,-1070.08,0.00038904,120]
[339666240,1727820738016,-500.0,0.00038904,120]
[339666241,1727820738025,-500.0,0.00038904,120]
[339666242,1727820738038,-500.0,0.00038904,120]
[339666243,1727820738048,-500.0,0.00038904,120]
[339666244,1727820738057,-1923.04,0.00038904,120]
[339666245,1727820738067,-857.77,0.00038904,120]
[339666246,1727820738077,-2261.0,0.00038904,120]
[339666247,1727820738086,-500.0,0.00038904,120]
[339666248,1727820738096,-1062.38,0.00038904,120]
[339666249,1727820738106,-500.0,0.00038904,120]
[339666250,1727820738116,-500.0,0.00038904,120]
[339666251,1727820738125,-907.03,0.00038904,120]
[339666252,1727820738135,-1358.61,0.00038904,120]
[339666253,1727820738144,-500.0,0.00038904,120]
[339666254,1727820738154,-528.25,0.00038904,120]
[339666255,1727820738163,-4156.88,0.00038904,120]
[339666256,1727820738173,-1099.94,0.00038904,120]
[339666257,1727820738182,-500.0,0.00038904,120]
[339666258,1727820738192,-660.82,0.00038904,120]
[339666259,1727820738201,-3441.48,0.00038904,7]
[339666260,1727820738210,-2560.29,0.00038904,120]
[339666261,1727820738220,-580.8,0.00038904,120]
[339666262,1727820738229,-500.0,0.00038904,120]
[339666263,1727820738239,-985.41,0.00038904,120]
[339666264,1727820738248,-1225.48,0.00038904,120]
[339666265,1727820738258,-1575.11,0.00038904,120]
[339666266,1727820738270,-500.0,0.00038904,120]
[339666267,1727820738279,-967.16,0.00038904,120]
[339666268,1727820738288,-1027.36,0.00038904,120]
[339666269,1727820738298,-2849.3,0.00038904,120]
[339666270,1727820738308,-1745.08,0.00038904,120]
[339666271,1727820738318,-705.04,0.00038904,120]
[339666272,1727820738328,-500.0,0.00038904,120]
[339666273,1727820738338,-500.0,0.00038904,120]
[339666274,1727820738348,-529.51,0.00038904,120]
[339666275,1727820738358,-500.0,0.00038904,120]
[339666276,1727820738368,-1708.87,0.00038904,120]
[339666277,1727820738378,-500.0,0.00038904,120]
[339666278,1727820738388,-3262.83,0.00038904,120]
[339666279,1727820738397,-500.0,0.00038904,90]
[339666280,1727820738407,-853.84,0.00038904,120]
[339666281,1727820738417,-5703.42,0.00038904,120]
[339666282,1727820738426,-3136.81,0.00038904,120]
[339666283,1727820738436,-500.0,0.00038904,120]
[339666284,1727820738445,-500.0,0.00038904,120]
[339666285,1727820738455,-4081.48,0.00038904,120]
[339666286,1727820738465,-354.14188955,0.00038904,120]
[339666287,1727820738474,-500.0,0.00038904,120]
[339666288,1727820738484,-2086.44,0.00038904,120]
[339666289,1727820738494,-3712.01,0.00038904,120]
[339666290,1727820738504,-871.7,0.00038904,120]
[339666291,1727820738513,-500.0,0.00038904,120]
[339666292,1727820738531,-500.0,0.00038904,120]
[339666293,1727820738540,-634.09,0.00038904,120]
[339666294,1727820738550,-500.0,0.00038904,120]
[339666295,1727820738560,-2173.94,0.00038904,120]
[339666296,1727820738570,-500.0,0.00038904,120]
[339666297,1727820738580,-975.58,0.00038904,120]
[339666298,1727820738590,-500.0,0.00038904,120]
[339666299,1727820738600,-1402.75,0.00038904,120]
[339666300,1727820738610,-500.0,0.00038904,120]
[339666301,1727820738619,-880.81,0.00038904,120]
[339666302,1727820738629,-902.4,0.00038904,120]
[339666303,1727820738640,-2426.66,0.00038904,120]
[339666304,1727820738652,-500.0,0.00038904,120]
[339666305,1727820738662,-666.13,0.00038904,120]
[339666306,1727820738671,-500.0,0.00038904,120]
[339666307,1727820738683,-500.0,0.00038904,120]
[339666308,1727820738692,-500.0,0.00038904,120]
[339666309,1727820738702,-1238.19,0.00038904,120]
[339666310,1727820738712,-500.0,0.00038904,120]
[339666311,1727820738722,-907.98,0.00038904,120]
[339666312,1727820738732,-2210.55,0.00038904,120]
[339666313,1727820738742,-500.0,0.00038904,120]
[339666314,1727820738752,-1798.18,0.00038904,120]
[339666315,1727820738761,-500.0,0.00038904,120]
[339666316,1727820738772,-2470.03,0.00038904,120]
[339666317,1727820738782,-500.0,0.00038904,120]
[339666318,1727820738791,-500.0,0.00038904,120]
[339666319,1727820738801,-996.57,0.00038904,120]
[339666320,1727820738810,-500.0,0.00038904,120]
[339666321,1727820738819,-2061.0,0.00038904,120]
[339666322,1727820738828,-500.0,0.00038904,120]
[339666323,1727820738837,-500.0,0.00038904,120]
[339666324,1727820738847,-500.0,0.00038904,120]
[339666325,1727820738857,-602.42,0.00038904,120]
[339666326,1727820738866,-500.0,0.00038904,120]
[339666327,1727820738876,-1172.0,0.00038904,120]
[339666328,1727820738885,-1419.38,0.00038904,120]
[339666329,1727820738894,-3467.23,0.00038904,120]
[339666330,1727820738903,-1691.93,0.00038904,120]
[339666331,1727820738912,-500.0,0.00038904,120]
[339666332,1727820738921,-4101.04,0.00038904,120]
[339666333,1727820738930,-500.0,0.00038904,120]
[339666334,1727820738939,-677.33,0.00038904,120]
[339666335,1727820738948,-500.0,0.00038904,120]
[339666336,1727820738958,-500.0,0.00038904,120]
[339666337,1727820738967,-833.05,0.00038904,120]
[339666338,1727820738977,-500.0,0.00038904,120]
[339666339,1727820738986,-500.0,0.00038904,120]
[339666340,1727820738995,-588.40901567,0.00038904,120]
[339666341,1727820739004,-3464.91,0.00038904,2]
[339666342,1727820739014,-643.90407423,0.00038904,120]
[339666343,1727820739023,-1956.73,0.00038904,120]
[339666344,1727820739032,-1946.23,0.00038904,120]
[339666345,1727820739042,-617.9,0.00038904,120]
[339666346,1727820739051,-1639.32,0.00038904,120]
[339666347,1727820739060,-500.43607205,0.00038904,120]
[339666348,1727820739070,-2100.71,0.00038904,120]
[339666349,1727820739079,-500.0,0.00038904,120]
[339666350,1727820739088,-1660.84,0.00038904,120]
[339666351,1727820739097,-2862.61,0.00038904,120]
[339666352,1727820739107,-500.0,0.00038904,120]
[339666353,1727820739116,-500.0,0.00038904,120]
[339666354,1727820739125,-500.0,0.00038904,7]
[339666355,1727820739134,-500.0,0.00038904,120]
[339666356,1727820739144,-500.0,0.00038904,120]
[339666357,1727820739153,-500.0,0.00038904,120]
[339666358,1727820739162,-2844.86,0.00038904,120]
[339666359,1727820739171,-562.19,0.00038904,120]
[339666360,1727820739180,-1513.2,0.00038904,120]
[339666361,1727820739190,-1836.7,0.00038904,120]
[339666362,1727820739199,-1702.59,0.00038904,120]
[339666363,1727820739207,-500.0,0.00038904,120]
[339666364,1727820739216,-500.0,0.00038904,120]
[339666365,1727820739225,-500.0,0.00038904,120]
[339666366,1727820739235,-4515.07,0.00038904,120]
[339666367,1727820739244,-527.16,0.00038904,120]
[339666368,1727820739253,-2408.38,0.00038904,120]
[339666369,1727820739263,-713.01,0.00038904,120]
[339666370,1727820739273,-1779.61,0.00038904,120]
[339666371,1727820739282,-1463.81,0.00038904,120]
[339666372,1727820739292,-754.74,0.00038904,120]
[339666373,1727820739301,-1385.69,0.00038904,120]
[339666374,1727820739311,-909.5,0.00038904,120]
[339666375,1727820739320,-500.0,0.00038904,120]
[339666376,1727820739442,-500.0,0.00038904,120]
[339666377,1727820739452,-277.78973839,0.00038904,120]
[339666378,1727820739462,-727.88,0.00038904,120]
[339666379,1727820739471,-500.0,0.00038904,120]
[339666380,1727820739481,-500.0,0.00038904,120]
[339666381,1727820739490,-565.09,0.00038904,120]
[339666382,1727820739500,-1971.06,0.00038904,120]
[339666383,1727820739510,-500.0,0.00038904,120]
[339666384,1727820739520,-1489.52,0.00038904,120]
[339666385,1727820739531,-532.71,0.00038904,120]
[339666386,1727820739541,-505.24871895,0.00038904,120]
[339666387,1727820739550,-631.55,0.00038904,120]
[339666388,1727820739560,-2949.18,0.00038904,120]
[339666389,1727820739570,-1129.67,0.00038904,120]
[339666390,1727820739580,-500.0,0.00038904,7]
[339666391,1727820739589,-632.15,0.00038904,120]
[339666392,1727820739599,-3225.97,0.00038904,120]
[339666393,1727820739609,-692.07,0.00038904,120]
[339666394,1727820739619,-534.81,0.00038904,120]
[339666395,1727820739629,-1721.35,0.00038904,120]
[339666396,1727820739639,-500.0,0.00038904,120]
[339666397,1727820739652,-500.0,0.00038904,120]
[339666398,1727820739662,-500.0,0.00038904,120]
[339666399,1727820739672,-546.17,0.00038904,120]
[339666400,1727820739681,-500.0,0.00038904,120]
[339666401,1727820739692,-500.0,0.00038904,120]
[339666402,1727820739701,-500.0,0.00038904,120]
[339666403,1727820739711,-650.82,0.00038904,120]
[339666404,1727820739721,-500.0,0.00038904,120]
[339666405,1727820739731,-500.0,0.00038904,120]
[339666406,1727820739741,-500.0,0.00038904,120]
[339666407,1727820739751,-1437.52,0.00038904,120]
[339666408,1727820739760,-518.0,0.00038904,120]
[339666409,1727820739771,-2907.14,0.00038904,120]
[339666410,1727820739781,-2926.57,0.00038904,120]
[339666411,1727820739790,-1025.17,0.00038904,120]
[339666412,1727820739800,-500.0,0.00038904,120]
[339666413,1727820739811,-500.0,0.00038904,120]
[339666414,1727820739821,-500.0,0.00038904,120]
[339666415,1727820739831,-1407.77,0.00038904,120]
[339666416,1727820739840,-860.32,0.00038904,120]
[339666417,1727820739849,-730.5,0.00038904,120]
[339666418,1727820739859,-1168.59,0.00038904,120]